bitfinex/quotes_SOLUSD_20240605
["timestamp","ask_amount","ask_price","bid_price","bid_amount"]
[1717568942527,2.1285,173.83,173.76,4.2586]
[1717568942739,2.1285,173.83,173.79,2.129]
[1717568943034,7.14,173.8,173.78,2.129]
[1717568943334,7.14,173.79,173.78,2.129]
[1717568944232,7.14,173.8,173.78,2.129]
[1717568945607,7.14,173.8,173.79,2.129]
[1717568947426,0.4,173.84,173.79,6.1645]
[1717568947641,0.4,173.84,173.82,2.1285]
[1717568947831,7.14,173.83,173.82,2.1285]
[1717568948033,0.4,173.84,173.82,2.1285]
[1717568948235,0.4,173.84,173.83,2.1285]
[1717568948542,0.4,173.84,173.82,2.1285]
[1717568948543,7.54,173.84,173.82,2.1285]
[1717568949239,7.14,173.83,173.82,2.1285]
[1717568949752,0.4,173.84,173.83,2.1285]
[1717568949935,7.54,173.84,173.83,2.1285]
[1717568950323,7.54,173.84,173.82,2.1285]
[1717568950632,7.14,173.83,173.82,2.1285]
[1717568953649,0.4,173.84,173.83,2.1285]
[1717568954164,7.54,173.84,173.83,2.1285]
[1717568954753,7.54,173.84,173.82,2.1285]
[1717568955462,7.54,173.84,173.83,2.1285]
[1717568956742,0.4,173.84,173.83,2.1285]
[1717568957269,7.54,173.84,173.83,2.1285]
[1717568957566,0.8999,173.83,173.7,22.2789]
[1717568957767,11.398,173.79,173.7,8.6505]
[1717568958070,2.1295,173.75,173.66,26.4111]
[1717568958233,7.14,173.69,173.68,2.1303]
[1717568959537,2.1296,173.74,173.67,2.1304]
[1717568959737,7.14,173.68,173.67,2.1304]
[1717568959958,7.14,173.68,173.66,2.1305]
[1717568960466,7.14,173.67,173.66,2.1305]
[1717568961137,2.1298,173.73,173.66,2.1305]
[1717568961360,7.14,173.69,173.66,6.4021]
[1717568961567,7.14,173.69,173.67,6.4021]
[1717568961932,7.14,173.68,173.67,8.5325]
[1717568962133,7.14,173.68,173.67,2.1304]
[1717568962640,7.14,173.68,173.66,2.1305]
[1717568964074,2.1296,173.74,173.67,2.1304]
[1717568964245,7.14,173.68,173.67,2.1304]
[1717568964644,2.1297,173.73,173.67,2.1304]
[1717568964859,7.14,173.68,173.67,2.1304]
[1717568969490,2.1297,173.73,173.68,2.1303]
[1717568969649,7.14,173.69,173.68,2.1303]
[1717568970463,2.1294,173.76,173.68,4.2606]
[1717568970771,7.14,173.71,173.7,2.1301]
[1717568972177,2.1295,173.75,173.7,2.1301]
[1717568972391,7.14,173.71,173.7,2.1301]
[1717568973853,7.14,173.71,173.69,2.1301]
[1717568974178,2.1295,173.75,173.7,2.13]
[1717568974381,7.14,173.71,173.7,2.13]
[1717568974768,7.14,173.71,173.69,2.1301]
[1717568975079,7.14,173.71,173.7,2.1301]
[1717568976454,2.1295,173.75,173.7,2.1301]
[1717568976661,7.14,173.71,173.7,2.1301]
[1717568976957,22.1294,173.76,173.7,2.1301]
[1717568977283,7.14,173.71,173.7,2.1301]
[1717568978366,7.14,173.71,173.69,2.1301]
[1717568978681,7.14,173.7,173.68,380.3]
[1717568978862,7.14,173.69,173.68,380.3]
[1717568979067,7.14,173.69,173.64,391.0679]
[1717568979275,7.14,173.7,173.66,2.1305]
[1717568979575,7.14,173.67,173.66,2.1305]
[1717568980589,7.14,173.67,173.64,384.5616]
[1717568980590,7.14,173.67,173.65,2.1307]
[1717568980754,7.14,173.66,173.65,2.1307]
[1717568981293,2.1299,173.72,173.67,2.1304]
[1717568981502,7.14,173.68,173.67,2.1304]
[1717568981798,7.14,173.68,173.66,2.1305]
[1717568981997,7.14,173.7,173.65,2.1306]
[1717568982299,7.14,173.66,173.63,2.1308]
[1717568982468,7.14,173.64,173.63,2.1308]
[1717568982669,7.14,173.64,173.62,2.131]
[1717568982979,7.14,173.64,173.63,2.1309]
[1717568989377,2.1303,173.68,173.63,2.1309]
[1717568989577,7.14,173.64,173.63,2.1309]
[1717568991794,7.14,173.64,173.62,2.131]
[1717568991992,2.1305,173.67,173.62,2.131]
[1717568991993,7.14,173.63,173.62,2.131]
[1717568995279,2.1303,173.69,173.64,2.1308]
[1717568995504,7.14,173.65,173.64,2.1308]
[1717568996209,7.14,173.65,173.63,2.1308]
[1717568996408,7.14,173.64,173.63,2.1308]
[1717569000199,2.1303,173.69,173.64,2.1308]
[1717569000400,7.14,173.65,173.64,2.1308]
[1717569001928,7.14,173.65,173.63,2.1309]
[1717569002090,7.14,173.64,173.62,2.131]
[1717569002289,7.14,173.63,173.62,2.131]
[1717569005028,28.56,173.7,173.63,6.3928]
[1717569005319,2.1297,173.73,173.68,2.1302]
[1717569005525,2.1298,173.73,173.68,2.1303]
[1717569005694,7.14,173.69,173.68,2.1303]
[1717569005893,7.14,173.69,173.67,2.1304]
[1717569006114,7.14,173.68,173.67,2.1304]
[1717569008901,2.1298,173.73,173.68,2.1303]
[1717569009125,7.14,173.69,173.68,2.1303]
[1717569010729,2.1298,173.72,173.68,2.1303]
[1717569010935,7.14,173.69,173.68,2.1303]
[1717569012121,7.14,173.69,173.67,2.1304]
[1717569012321,7.14,173.68,173.66,2.1305]
[1717569012616,7.14,173.67,173.66,2.1305]
[1717569012946,7.14,173.67,173.65,380.3]
[1717569013122,7.14,173.66,173.65,380.3]
[1717569013814,7.14,173.66,173.65,382.4307]
[1717569014821,7.14,173.66,173.65,380.3]
[1717569016729,7.14,173.66,173.65,382.4307]
[1717569017151,4.7586,173.77,173.7,2.13]
[1717569017323,7.14,173.71,173.69,2.1301]
[1717569017645,7.14,173.7,173.69,2.1302]
[1717569019124,2.1294,173.76,173.69,4.2604]
[1717569019315,7.14,173.71,173.7,2.1301]
[1717569020531,7.14,173.72,173.71,2.1298]
[1717569021425,2.1293,173.77,173.72,2.1298]
[1717569021622,7.14,173.73,173.72,2.1298]
[1717569021953,22.1293,173.77,173.72,2.1298]
[1717569022126,7.14,173.73,173.72,2.1298]
[1717569023750,2.1293,173.77,173.73,2.1297]
[1717569024051,7.14,173.74,173.72,2.1298]
[1717569024262,7.14,173.73,173.72,2.1298]
[1717569025726,2.1294,173.76,173.69,393.0663]
[1717569025927,2.1293,173.77,173.71,2.1299]
[1717569026251,2.1293,173.76,173.72,2.1297]
[1717569026463,7.14,173.73,173.71,2.1299]
[1717569026649,7.14,173.72,173.71,2.1299]
[1717569028739,2.1293,173.76,173.72,2.1298]
[1717569029055,7.14,173.73,173.72,2.1298]
[1717569030333,2.1293,173.77,173.72,2.1298]
[1717569030536,7.14,173.73,173.72,2.1298]
[1717569030752,2.1293,173.77,173.73,2.1297]
[1717569031057,22.1291,173.78,173.73,2.1297]
[1717569031359,7.14,173.74,173.73,2.1297]
[1717569031559,22.1291,173.78,173.73,2.1297]
[1717569031771,7.14,173.74,173.73,2.1297]
[1717569032566,30.689,173.79,173.74,2.1295]
[1717569032774,7.14,173.75,173.74,2.1295]
[1717569034264,28.56,173.79,173.74,2.1295]
[1717569034460,7.14,173.75,173.74,2.1295]
[1717569036065,7.14,173.75,173.71,386.6899]
[1717569036066,7.14,173.75,173.71,380.3]
[1717569036269,7.14,173.72,173.71,382.4299]
[1717569037293,7.14,173.72,173.71,386.6898]
[1717569037675,7.14,173.72,173.71,6.3898]
[1717569039656,7.14,173.72,173.69,380.3]
[1717569039987,7.14,173.71,173.69,390.9509]
[1717569040286,7.14,173.71,173.7,6.3903]
[1717569040657,2.1291,173.78,173.73,2.1296]
[1717569040868,7.14,173.74,173.73,2.1296]
[1717569041884,7.14,173.74,173.73,2.1297]
[1717569042265,7.14,173.79,173.72,4.2594]
[1717569042576,7.14,173.74,173.73,2.1297]
[1717569042884,30.689,173.79,173.74,2.1295]
[1717569043085,7.14,173.75,173.74,2.1295]
[1717569044886,30.689,173.79,173.74,2.1295]
[1717569045188,7.14,173.75,173.74,2.1295]
[1717569047681,7.14,173.75,173.73,2.1296]
[1717569047986,7.14,173.74,173.73,2.1296]
[1717569048203,28.56,173.79,173.73,2.1296]
[1717569048482,8.5149,173.82,173.75,2.1294]
[1717569048483,7.14,173.76,173.75,2.1294]
[1717569049793,2.1289,173.8,173.76,2.1293]
[1717569050082,7.14,173.77,173.76,2.1293]
[1717569051972,13.1704,173.84,173.77,2.1292]
[1717569052277,7.14,173.78,173.77,2.1292]
[1717569053588,2.1286,173.82,173.78,2.1291]
[1717569053781,2.1286,173.82,173.77,2.1291]
[1717569053983,7.14,173.78,173.77,2.1292]
[1717569056379,2.1287,173.82,173.78,2.1291]
[1717569056686,7.14,173.79,173.78,2.1291]
[1717569057402,2.1287,173.82,173.78,2.1291]
[1717569057583,7.14,173.79,173.77,2.1291]
[1717569057782,7.14,173.78,173.77,2.1292]
[1717569063894,2.1286,173.82,173.78,2.129]
[1717569064204,7.14,173.79,173.78,2.129]
[1717569071106,7.14,173.79,173.77,2.1292]
[1717569071282,7.14,173.78,173.77,2.1292]
[1717569075222,7.14,173.78,173.73,12.7781]
[1717569075433,7.14,173.79,173.75,2.1293]
[1717569075609,7.14,173.76,173.75,2.1293]
[1717569076032,2.1289,173.8,173.76,2.1293]
[1717569076233,7.14,173.77,173.76,2.1293]
[1717569076904,2.1288,173.81,173.77,2.1291]
[1717569077107,7.14,173.78,173.77,2.1291]
[1717569077902,2.1287,173.81,173.77,2.1291]
[1717569078103,7.14,173.78,173.77,2.1291]
[1717569081140,0.4,173.84,173.77,6.2843]
[1717569081319,7.14,173.8,173.79,2.129]
[1717569081513,2.5284,173.84,173.8,2.1288]
[1717569081714,7.14,173.81,173.8,2.1288]
[1717569081911,7.14,173.81,173.79,2.1289]
[1717569082110,7.14,173.81,173.8,2.1288]
[1717569085855,7.14,173.81,173.79,2.1289]
[1717569086214,7.14,173.81,173.78,2.129]
[1717569086438,7.14,173.79,173.78,2.129]
[1717569089246,7.14,173.79,173.76,380.3]
[1717569089446,7.14,173.77,173.76,382.4293]
[1717569089757,7.14,173.77,173.76,2.1293]
[1717569090843,2.1287,173.81,173.77,2.1292]
[1717569091023,7.14,173.78,173.77,2.1292]
[1717569091914,7.14,173.78,173.77,44.0131]
[1717569092118,7.14,173.8,173.79,2.1289]
[1717569092847,2.5284,173.84,173.79,2.1289]
[1717569093048,7.14,173.8,173.79,2.1289]
[1717569093413,7.14,173.8,173.79,2.129]
[1717569095338,7.14,173.8,173.79,6.387]
[1717569096639,7.14,173.8,173.77,15.1702]
[1717569096640,0.4,173.84,173.83,2.1285]
[1717569096850,0.4,173.84,173.82,2.1285]
[1717569096851,7.54,173.84,173.82,2.1285]
[1717569097019,7.14,173.83,173.82,2.1285]
[1717569097445,7.14,173.83,173.81,2.1286]
[1717569097619,7.14,173.82,173.81,2.1286]
[1717569099523,7.14,173.82,173.8,2.1288]
[1717569099834,7.14,173.81,173.8,2.1288]
[1717569102933,0.4,173.84,173.81,2.1287]
[1717569103126,7.14,173.82,173.81,2.1287]
[1717569103327,0.4,173.84,173.8,10.6441]
[1717569103550,0.4,173.84,173.82,2.1285]
[1717569103725,7.14,173.83,173.82,2.1285]
[1717569104350,0.4,173.84,173.83,2.1285]
[1717569104542,7.54,173.84,173.83,2.1285]
[1717569111265,0.4,173.84,173.83,2.1285]
[1717569111444,7.54,173.84,173.83,2.1285]
[1717569114661,7.54,173.84,173.81,4.2575]
[1717569114662,7.54,173.84,173.79,4.2578]
[1717569114980,7.14,173.8,173.79,6.3868]
[1717569115444,0.4,173.84,173.79,19.1608]
[1717569115766,7.14,173.8,173.79,25.56]
[1717569115940,7.14,173.8,173.79,27.689]
[1717569119272,7.14,173.8,173.79,21.2898]
[1717569120069,7.14,173.8,173.79,14.9028]
[1717569120270,7.14,173.8,173.79,6.3868]
[1717569120573,7.14,173.8,173.79,2.129]
[1717569123568,7.14,173.8,173.78,382.429]
[1717569123879,2.5284,173.84,173.79,2.129]
[1717569124172,7.14,173.8,173.78,382.429]
[1717569124374,7.14,173.79,173.78,382.429]
[1717569124792,2.5284,173.84,173.79,2.1289]
[1717569124963,7.14,173.8,173.79,2.1289]
[1717569126477,7.14,173.8,173.78,2.129]
[1717569127749,0.4,173.84,173.75,120.0]
[1717569128072,0.4,173.84,173.81,2.1287]
[1717569128249,7.14,173.82,173.81,2.1287]
[1717569128448,7.14,173.82,173.8,2.1288]
[1717569128677,7.14,173.81,173.8,2.1288]
[1717569129246,7.14,173.81,173.79,2.1289]
[1717569129471,7.14,173.8,173.79,2.1289]
[1717569139280,7.14,173.8,173.77,2.1291]
[1717569139787,7.14,173.78,173.77,2.1291]
[1717569141183,7.14,173.78,173.76,2.1293]
[1717569141484,7.14,173.79,173.75,2.1294]
[1717569141675,28.56,173.79,173.75,2.1294]
[1717569142063,28.56,173.79,173.76,2.1293]
[1717569143477,28.56,173.79,173.77,2.1292]
[1717569143682,28.56,173.79,173.76,2.1292]
[1717569143867,28.56,173.79,173.75,2.1294]
[1717569144182,28.56,173.79,173.76,2.1293]
[1717569146699,7.14,173.77,173.76,2.1293]
[1717569146996,2.1288,173.81,173.76,2.1293]
[1717569147199,7.14,173.77,173.75,2.1294]
[1717569147384,7.14,173.76,173.75,2.1294]
[1717569150803,7.14,173.76,173.72,2.1298]
[1717569151015,7.14,173.73,173.72,2.1298]
[1717569152902,28.56,173.79,173.74,2.1295]
[1717569153411,7.14,173.75,173.74,2.1295]
[1717569153611,28.56,173.79,173.75,2.1294]
[1717569153789,7.14,173.76,173.75,2.1294]
[1717569154184,7.14,173.76,173.74,2.1295]
[1717569154489,7.14,173.75,173.74,2.1295]
[1717569162410,7.14,173.75,173.73,2.1296]
[1717569162624,30.689,173.79,173.74,2.1296]
[1717569162795,7.14,173.75,173.74,2.1296]
[1717569163813,7.14,173.75,173.73,2.1296]
[1717569164015,7.14,173.74,173.73,2.1296]
[1717569164205,7.14,173.74,173.72,2.1297]
[1717569164523,7.14,173.73,173.72,2.1297]
[1717569165799,2.1292,173.78,173.73,2.1296]
[1717569166009,6.14,173.74,173.73,2.1296]
[1717569166914,6.14,173.74,173.7,380.3]
[1717569167118,6.14,173.74,173.72,2.1298]
[1717569168202,7.14,173.73,173.72,2.1298]
[1717569170126,2.1292,173.78,173.73,2.1297]
[1717569170501,7.14,173.74,173.73,2.1297]
[1717569171537,7.14,173.74,173.72,2.1297]
[1717569172310,7.14,173.73,173.72,2.1297]
[1717569172834,7.14,173.74,173.72,2.1297]
[1717569173310,7.14,173.74,173.71,4.2599]
[1717569173311,2.129,173.79,173.73,8.7185]
[1717569173503,7.14,173.75,173.73,8.7185]
[1717569175241,7.14,173.74,173.73,8.7185]
[1717569176734,7.14,173.74,173.73,2.1297]
[1717569176944,7.14,173.74,173.72,2.1297]
[1717569178628,7.14,173.74,173.73,2.1297]
[1717569178848,7.14,173.74,173.73,8.3861]
[1717569179521,7.14,173.74,173.71,2.1298]
[1717569179830,7.14,173.72,173.71,2.1299]
[1717569181650,2.1292,173.77,173.7,20.0]
[1717569181651,7.14,173.73,173.72,2.1297]
[1717569181826,28.56,173.79,173.72,8.5816]
[1717569182027,28.56,173.79,173.7,140.0]
[1717569182028,7.14,173.73,173.7,26.4519]
[1717569182254,7.14,173.71,173.7,20.0]
[1717569182452,7.14,173.71,173.7,2.1301]
[1717569183144,28.56,173.79,173.67,20.0]
[1717569183352,30.689,173.79,173.73,2.1296]
[1717569183540,7.14,173.74,173.72,2.1298]
[1717569183741,7.14,173.73,173.72,2.1298]
[1717569186164,7.14,173.73,173.71,2.1299]
[1717569186466,7.14,173.72,173.71,2.1299]
[1717569186668,7.14,173.72,173.7,2.13]
[1717569186975,7.14,173.71,173.7,2.13]
[1717569187352,2.1292,173.78,173.69,4.2604]
[1717569187559,22.1292,173.78,173.72,2.1297]
[1717569187876,7.14,173.73,173.72,2.1297]
[1717569188174,22.1292,173.78,173.72,2.1297]
[1717569188374,7.14,173.73,173.72,2.1297]
[1717569189077,22.1292,173.78,173.72,2.1297]
[1717569189244,28.56,173.79,173.74,2.1295]
[1717569189439,0.4,173.84,173.73,8.5188]
[1717569189679,7.14,173.78,173.77,2.1292]
[1717569190464,2.1285,173.83,173.78,2.1291]
[1717569190670,7.14,173.79,173.78,2.1291]
[1717569191083,7.14,173.79,173.77,2.1291]
[1717569191260,7.14,173.78,173.77,2.1291]
[1717569191668,7.14,173.78,173.76,2.1293]
[1717569191880,7.14,173.79,173.72,0.17]
[1717569192053,7.14,173.79,173.74,2.1295]
[1717569192388,7.14,173.75,173.74,2.1295]
[1717569194348,7.14,173.75,173.73,2.1297]
[1717569194547,2.1291,173.78,173.73,2.1297]
[1717569194548,7.14,173.74,173.73,2.1297]
[1717569198979,30.689,173.79,173.73,2.1297]
[1717569199181,7.14,173.74,173.73,2.1297]
[1717569199471,30.689,173.79,173.74,2.1296]
[1717569199673,7.14,173.75,173.74,2.1296]
[1717569199976,7.14,173.76,173.74,4.2591]
[1717569200172,2.1287,173.82,173.76,2.1292]
[1717569200173,7.14,173.77,173.76,2.1292]
[1717569201947,4.6568,173.84,173.75,0.62226009]
[1717569201948,7.14,173.78,173.77,2.1292]
[1717569202179,7.14,173.78,173.76,2.1293]
[1717569202556,2.1286,173.82,173.77,2.1292]
[1717569202817,7.14,173.79,173.76,2.1293]
[1717569203087,7.14,173.78,173.76,2.1293]
[1717569205460,2.1287,173.81,173.76,2.1293]
[1717569205958,7.14,173.78,173.76,2.1293]
[1717569206969,7.14,173.77,173.76,2.1293]
[1717569207388,2.1287,173.81,173.76,2.1293]
[1717569207599,7.14,173.77,173.76,2.1293]
[1717569208569,2.1287,173.81,173.76,2.1293]
[1717569208872,7.14,173.77,173.76,2.1293]
[1717569217704,7.14,173.77,173.75,2.1294]
[1717569217905,7.14,173.76,173.75,2.1294]
[1717569219677,7.14,173.76,173.75,6.3883]
[1717569220003,7.14,173.77,173.76,2.1293]
[1717569222209,2.1286,173.82,173.77,2.1292]
[1717569222714,7.14,173.78,173.77,2.1292]
[1717569223697,7.14,173.78,173.76,2.1293]
[1717569223893,7.14,173.77,173.76,2.1293]
[1717569226008,2.1287,173.82,173.77,2.1291]
[1717569226180,7.14,173.78,173.77,2.1291]
[1717569230185,7.14,173.78,173.76,2.1292]
[1717569230384,7.14,173.78,173.77,2.1292]
[1717569230901,7.14,173.78,173.76,2.1292]
[1717569231114,7.14,173.78,173.76,3.03951487]
[1717569231595,7.14,173.78,173.76,0.91031487]
[1717569231798,7.14,173.78,173.77,2.1292]
[1717569232286,7.14,173.78,173.76,2.1292]
[1717569232489,7.14,173.77,173.76,2.1292]
[1717569234003,7.14,173.77,173.76,382.4292]
[1717569235602,7.14,173.77,173.76,380.3]
[1717569237088,7.14,173.77,173.76,382.4293]
[1717569238285,2.1286,173.82,173.77,2.1291]
[1717569238485,7.14,173.78,173.77,2.1291]
[1717569238999,0.4,173.84,173.78,79.0850082]
[1717569239220,0.4,173.84,173.83,2.1285]
[1717569239621,0.4,173.84,173.83,44.55321421]
[1717569239792,0.4,173.84,173.83,64.72321421]
[1717569240383,0.4,173.84,173.83,143.97822241]
[1717569240592,0.4,173.84,173.83,64.89321421]
[1717569241203,0.4,173.84,173.83,143.97822241]
[1717569241626,0.4,173.84,173.83,64.89321421]
[1717569241932,0.4,173.84,173.83,143.97822241]
[1717569242220,0.4,173.84,173.83,443.3624]
[1717569242418,0.4,173.84,173.83,450.5024]
[1717569243204,0.4,173.84,173.83,529.5874082]
[1717569243610,0.4,173.84,173.83,450.5024]
[1717569244221,0.4,173.84,173.83,529.5874082]
[1717569244404,0.4,173.84,173.83,443.3624]
[1717569244818,0.4,173.84,173.83,444.4129]
[1717569245305,0.4,173.84,173.83,523.4979082]
[1717569245531,0.4,173.84,173.83,444.4129]
[1717569245702,0.4,173.84,173.83,451.5529]
[1717569245904,0.4,173.84,173.83,530.6379082]
[1717569246107,0.4,173.84,173.83,530.9779082]
[1717569246301,0.4,173.84,173.83,451.8929]
[1717569246517,0.4,173.84,173.83,530.9779082]
[1717569246696,0.4,173.84,173.83,451.8929]
[1717569247802,0.4,173.84,173.83,444.7529]
[1717569248000,0.4,173.84,173.83,523.8379082]
[1717569248221,0.4,173.84,173.83,444.7529]
[1717569248422,0.4,173.84,173.83,523.8379082]
[1717569248601,0.4,173.94,173.83,457.9879]
[1717569248799,0.4,173.94,173.93,2.1272]
[1717569249022,7.54,173.94,173.93,2.1272]
[1717569250025,0.4,173.94,173.93,2.1272]
[1717569250198,7.54,173.94,173.93,2.1272]
[1717569251128,0.4,173.94,173.93,2.1272]
[1717569251524,0.4,173.94,173.93,41.4426]
[1717569252403,0.4,173.94,173.93,41.6126]
[1717569254215,0.4,173.94,173.93,421.9126]
[1717569254436,0.4,173.94,173.93,406.6817]
[1717569254605,7.54,173.94,173.93,402.4272]
[1717569255526,7.54,173.94,173.93,380.3]
[1717569257514,7.54,173.94,173.92,2.1274]
[1717569257718,7.14,173.93,173.92,2.1274]
[1717569258107,0.4,173.94,173.93,2.1272]
[1717569258912,0.4,173.94,173.93,6.3817]
[1717569260513,0.4,173.94,173.93,21.2726]
[1717569261214,7.54,173.94,173.93,2.1272]
[1717569262033,0.4,173.94,173.93,43.8713]
[1717569262244,0.4,173.94,173.93,74.31673433]
[1717569262539,0.4,173.94,173.93,81.45673433]
[1717569262714,0.4,173.94,173.93,71.3513]
[1717569262908,0.4,173.94,173.93,64.2113]
[1717569263435,0.4,173.94,173.93,454.61673433]
[1717569263735,0.4,173.94,173.93,444.5113]
[1717569264035,0.4,173.94,173.93,428.4549]
[1717569266942,0.4,173.94,173.93,421.9126]
[1717569272227,0.4,173.94,173.93,443.7001]
[1717569272953,0.4,173.94,173.93,450.8401]
[1717569274820,0.4,173.94,173.93,541.9126]
[1717569275018,0.4,173.94,173.93,421.9126]
[1717569275246,0.4,173.94,173.93,421.7426]
[1717569275746,0.4,173.94,173.93,421.5726]
[1717569276733,0.4,173.94,173.93,421.7426]
[1717569277122,0.4,173.94,173.93,421.9126]
[1717569278123,0.4,173.94,173.93,421.7426]
[1717569278327,0.4,173.94,173.93,421.5726]
[1717569278530,7.54,173.94,173.93,421.5726]
[1717569278756,7.54,173.94,173.93,382.4272]
[1717569279849,7.54,173.94,173.93,386.6817]
[1717569280349,7.54,173.94,173.93,382.4272]
[1717569280851,7.54,173.94,173.93,2.1272]
[1717569281042,0.4,173.94,173.93,12.7635]
[1717569282257,0.4,173.94,173.93,21.2726]
[1717569283054,0.4,173.94,173.93,71.8593]
[1717569285762,0.4,173.94,173.93,64.7193]
[1717569285935,0.4,173.94,173.93,71.8593]
[1717569286737,0.4,173.94,173.93,452.1593]
[1717569288949,0.4,173.94,173.93,486.6693]
[1717569290457,0.4,174.04,174.03,2.126]
[1717569290649,7.54,174.04,174.02,2.1261]
[1717569290848,7.14,174.03,174.02,2.1261]
[1717569292878,7.14,174.03,174.01,2.1262]
[1717569293261,7.14,174.02,174.01,2.1262]
[1717569297664,7.14,174.02,174.01,6.3788]
[1717569298684,7.14,174.02,174.01,2.1263]
[1717569298979,0.4,174.04,174.02,2.1261]
[1717569299197,7.14,174.03,174.02,2.1261]
[1717569300175,0.4,174.04,174.03,2.126]
[1717569300390,7.54,174.04,174.03,2.126]
[1717569300681,0.4,174.04,174.01,2.1262]
[1717569300850,7.14,174.02,174.01,2.1262]
[1717569303554,7.14,174.02,174.0,2.1263]
[1717569304258,7.14,174.02,174.01,2.1263]
[1717569304461,7.14,174.02,173.99,20.0]
[1717569304687,7.14,174.0,173.98,380.3]
[1717569304895,3.0259,174.04,173.99,2.1265]
[1717569305057,7.14,174.0,173.99,2.1265]
[1717569305682,7.14,174.0,173.98,380.3]
[1717569305885,7.14,173.99,173.98,380.3]
[1717569307157,7.14,173.99,173.98,382.4266]
[1717569307356,7.14,173.99,173.95,10.635]
[1717569307553,7.14,173.99,173.96,20.0]
[1717569307764,7.14,173.97,173.96,26.3807]
[1717569308783,7.14,173.97,173.96,22.1269]
[1717569309088,7.14,173.97,173.96,2.1269]
[1717569311056,7.14,173.97,173.92,8.5096]
[1717569311256,7.14,173.93,173.92,2.1274]
[1717569311564,7.14,173.93,173.92,6.3822]
[1717569311775,7.14,173.93,173.92,12.7644]
[1717569313188,7.14,173.93,173.92,6.3822]
[1717569313890,7.14,173.93,173.92,26.3822]
[1717569314966,4.6515,174.05,173.97,2.1267]
[1717569315204,7.14,173.98,173.97,2.1267]
[1717569316176,7.14,173.98,173.96,2.1268]
[1717569316376,7.14,173.97,173.96,2.1268]
[1717569317600,2.1262,174.02,173.96,2.1268]
[1717569317802,7.14,173.97,173.96,2.1268]
[1717569318007,2.1262,174.02,173.96,2.1268]
[1717569318494,7.14,173.97,173.96,2.1268]
[1717569320590,7.14,173.97,173.95,2.1269]
[1717569320782,7.14,173.96,173.95,2.1269]
[1717569322002,7.14,173.96,173.94,2.127]
[1717569322210,7.14,173.95,173.94,2.127]
[1717569323709,33.656,174.04,173.96,2.1269]
[1717569323907,33.656,174.04,173.94,4.2542]
[1717569323908,25.152,174.04,173.97,2.1267]
[1717569324082,7.14,173.98,173.97,2.1267]
[1717569324904,7.14,173.98,173.96,2.1268]